bitfinex/quotes_ETHUSD_20230111
["timestamp","ask_amount","ask_price","bid_price","bid_amount"]
[1673478599909,26.67289,1354.0,1353.7,23.4628]
[1673478600168,26.67289,1354.0,1353.7,22.9086]
[1673478600385,41.97689,1354.0,1353.7,0.066]
[1673478600613,41.97689,1354.0,1353.6,9.772]
[1673478600614,3.0,1353.9,1353.6,9.772]
[1673478600909,22.15983,1353.8,1353.6,9.772]
[1673478601220,22.22583,1353.8,1353.6,9.772]
[1673478601434,22.22583,1353.8,1353.6,0.066]
[1673478601591,10.14,1353.7,1353.5,0.066]
[1673478601951,22.1631,1353.6,1353.4,1.10798194]
[1673478602121,22.2291,1353.6,1353.4,1.10798194]
[1673478602324,3.0,1353.5,1353.4,1.10798194]
[1673478602575,21.4537,1353.6,1353.5,1.10022769]
[1673478602794,24.4537,1353.6,1353.5,1.10022769]
[1673478603595,43.6791,1353.6,1353.5,1.10022769]
[1673478603803,36.2914,1353.6,1353.5,1.10022769]
[1673478604014,43.6791,1353.6,1353.5,1.10022769]
[1673478604501,36.8456,1353.6,1353.5,1.10022769]
[1673478604814,38.1526,1353.6,1353.5,1.10022769]
[1673478605868,45.5403,1353.6,1353.5,1.10022769]
[1673478606085,43.6791,1353.6,1353.5,1.10022769]
[1673478609097,43.6791,1353.6,1353.5,1.09705653]
[1673478610913,48.77476064,1353.6,1353.5,1.09705653]
[1673478611127,55.31976064,1353.6,1353.5,1.09705653]
[1673478611839,28.061,1353.6,1353.5,1.09705653]
[1673478612051,9.611,1353.6,1353.5,2.48505653]
[1673478612390,6.611,1353.6,1353.5,8.52400789]
[1673478612700,6.611,1353.6,1353.5,8.59000789]
[1673478612911,4.72131541,1353.6,1353.5,8.59000789]
[1673478613065,4.65531541,1353.6,1353.5,11.03750087]
[1673478613595,4.65531541,1353.6,1353.5,4.99854951]
[1673478613853,4.65531541,1353.6,1353.5,1.09705653]
[1673478615101,4.65531541,1353.6,1353.5,8.48530653]
[1673478615307,4.65531541,1353.6,1353.5,8.55130653]
[1673478615640,0.83371541,1353.6,1353.5,30.66448817]
[1673478616018,0.83371541,1353.6,1353.5,34.71878817]
[1673478616386,1.541e-05,1353.6,1353.5,43.94528985]
[1673478616552,0.066,1354.0,1353.5,43.94528985]
[1673478616553,0.066,1354.1,1353.6,3.5]
[1673478616776,0.066,1354.2,1353.9,1.301]
[1673478616979,52.14973,1354.4,1354.0,5.12195188]
[1673478617185,0.47600001,1354.1,1354.0,5.18795188]
[1673478617401,0.47600001,1354.1,1354.0,22.46485113]
[1673478617585,0.47600001,1354.1,1354.0,15.07933113]
[1673478617833,0.47600001,1354.1,1354.0,22.46485113]
[1673478618378,0.361512,1354.5,1354.1,2.247]
[1673478618605,0.297512,1354.5,1354.3,22.15164]
[1673478618758,0.295512,1354.5,1354.3,28.18535354]
[1673478618957,0.364512,1354.5,1354.3,20.80147354]
[1673478619163,0.364512,1354.5,1354.4,20.73439354]
[1673478619377,0.364512,1354.5,1354.4,16.23548089]
[1673478619850,0.069,1354.5,1354.4,16.23548089]
[1673478620428,0.069,1354.5,1354.4,23.61882089]
[1673478621740,0.069,1354.5,1354.4,31.00216089]
[1673478623895,0.069,1354.5,1354.4,2.88442735]
[1673478624150,0.069,1354.5,1354.4,10.20176735]
[1673478624335,0.069,1354.5,1354.4,10.26776735]
[1673478624771,0.069,1354.5,1354.4,17.65110735]
[1673478625096,0.069,1354.5,1354.4,23.61882089]
[1673478625288,0.069,1354.5,1354.4,37.41682153]
[1673478626311,0.069,1354.5,1354.4,0.066]
[1673478626561,23.60537,1354.5,1354.3,22.5979]
[1673478626732,16.28858,1354.5,1354.3,22.5979]
[1673478627216,16.84248,1354.5,1354.3,0.066]
[1673478627363,16.84248,1354.5,1354.1,6.03371354]
[1673478627733,16.84248,1354.5,1354.1,0.066]
[1673478627734,23.67137,1354.5,1354.1,0.066]
[1673478628038,23.67137,1354.5,1354.0,31.82]
[1673478628205,10.38364,1354.4,1354.0,35.61766064]
[1673478628415,10.44964,1354.4,1354.0,35.61766064]
[1673478628627,25.21662,1354.4,1354.0,35.61766064]
[1673478629092,25.21662,1354.4,1354.0,31.82]
[1673478629302,10.44934,1354.4,1354.0,37.89652]
[1673478629464,10.44934,1354.4,1354.0,45.28204]
[1673478629671,17.83298,1354.4,1354.0,45.28204]
[1673478630459,25.21662,1354.4,1354.0,30.511]
[1673478632611,39.77052,1354.4,1354.0,30.511]
[1673478632875,45.52352,1354.4,1354.1,0.22771369]
[1673478633028,44.96962,1354.4,1354.1,0.22771369]
[1673478633770,48.76728064,1354.4,1354.1,0.22771369]
[1673478634335,4.45,1354.3,1354.1,0.22771369]
[1673478634520,14.76886,1354.2,1354.1,0.22771369]
[1673478634867,14.83486,1354.2,1354.1,0.22771369]
[1673478636215,22.21929,1354.2,1354.1,0.22771369]
[1673478637228,45.77395064,1354.2,1354.1,0.22771369]
[1673478637442,48.77395064,1354.2,1354.1,0.22771369]
[1673478637889,49.32795064,1354.2,1354.1,0.22771369]
[1673478639384,50.62695064,1354.2,1354.1,3.69e-06]
[1673478639721,50.62695064,1354.2,1353.7,22.2875]
[1673478639863,14.0,1353.9,1353.7,22.2875]
[1673478640076,22.15983,1353.8,1353.7,0.066]
[1673478640309,22.22583,1353.8,1353.6,0.066]
[1673478640539,22.22583,1353.8,1353.4,27.73848992]
[1673478640722,22.22583,1353.8,1353.4,44.8925441]
[1673478640950,14.83922,1353.8,1353.4,59.23216406]
[1673478642108,14.83922,1353.8,1353.4,52.71015052]
[1673478642323,14.83922,1353.8,1353.4,58.67786406]
[1673478642544,14.83922,1353.8,1353.4,66.06665406]
[1673478642865,14.83922,1353.8,1353.4,58.67786406]
[1673478643172,7.45261,1353.8,1353.4,66.06665406]
[1673478643326,7.45261,1353.8,1353.5,2.92790529]
[1673478643542,14.83922,1353.8,1353.5,6.42790529]
[1673478643861,14.83922,1353.8,1353.5,6.49390529]
[1673478644394,7.45261,1353.8,1353.5,6.49390529]
[1673478644800,14.83922,1353.8,1353.5,6.49390529]
[1673478645486,22.22583,1353.8,1353.5,6.49390529]
[1673478645642,14.83922,1353.8,1353.5,6.49390529]
[1673478646022,14.83922,1353.8,1353.5,13.88214529]
[1673478646169,7.45261,1353.8,1353.5,21.27039529]
[1673478646711,7.45261,1353.8,1353.5,27.23810883]
[1673478646920,0.066,1353.8,1353.6,2.72381088]
[1673478647259,29.32681,1353.9,1353.6,10.11149088]
[1673478647260,28.83853,1353.9,1353.6,10.11149088]
[1673478647472,28.83853,1353.9,1353.6,10.17749088]
[1673478647648,21.45213,1353.9,1353.6,10.17749088]
[1673478647863,21.45213,1353.9,1353.6,17.56519088]
[1673478648114,36.22449,1353.9,1353.6,2.78981088]
[1673478648321,21.83491,1354.2,1353.9,1.03389785]
[1673478648481,0.002,1354.0,1353.9,5.92189785]
[1673478648683,17.241,1354.5,1353.9,41.49957139]
[1673478648894,0.5539,1354.4,1354.0,10.11767068]
[1673478649214,0.5539,1354.4,1354.0,32.33969068]
[1673478649459,20.5269,1354.5,1354.1,13.35236354]
[1673478649835,20.5249,1354.5,1354.1,16.91836354]
[1673478650323,4.583,1354.5,1354.1,16.91836354]
[1673478650473,4.583,1354.5,1354.1,23.71228561]
[1673478650474,4.519,1354.5,1354.1,23.71228561]
[1673478650683,4.519,1354.5,1354.1,38.48222561]
[1673478650893,4.519,1354.5,1354.1,23.71228561]
[1673478651164,11.90186,1354.5,1354.1,23.71228561]
[1673478651476,18.45,1354.4,1354.1,0.066]
[1673478651690,22.15164,1354.3,1354.0,32.1664]
[1673478651850,25.15364,1354.2,1354.0,32.1664]
[1673478652057,17.83288,1354.2,1354.0,22.3858]
[1673478652736,17.83288,1354.2,1354.0,0.066]
[1673478652737,39.21764,1354.2,1354.0,0.066]
[1673478652911,39.21764,1354.2,1353.9,1.03389785]
[1673478655625,17.064,1354.2,1353.9,15.80587785]
[1673478655991,17.064,1354.2,1353.9,15.87187785]
[1673478656352,24.44853,1354.2,1353.9,15.87187785]
[1673478656820,28.89853,1354.2,1353.9,1.09989785]
[1673478657042,43.66749,1354.2,1353.9,1.03389785]
[1673478657888,47.46515064,1354.2,1353.9,1.03389785]
[1673478658048,48.01915064,1354.2,1353.9,1.03389785]
[1673478658890,14.0,1354.0,1353.9,1.03389785]
[1673478659104,26.61166064,1354.0,1353.9,1.03389785]
[1673478659363,58.01684064,1354.0,1353.9,7.85e-06]
[1673478659722,65.82984064,1354.0,1353.9,7.85e-06]
[1673478661668,65.83184064,1354.0,1353.9,7.85e-06]
[1673478661822,65.82984064,1354.0,1353.9,7.85e-06]
[1673478662036,67.13884064,1354.0,1353.9,7.85e-06]
[1673478662276,184.68851727,1354.0,1353.9,7.85e-06]
[1673478662489,197.07403727,1354.0,1353.9,7.85e-06]
[1673478662714,12.263,1353.8,1353.4,0.07368992]
[1673478662919,19.754,1353.5,1353.4,0.07368992]
[1673478663108,19.754,1353.5,1353.3,0.07137545]
[1673478663109,53.16666064,1353.5,1353.3,0.07137545]
[1673478663321,31.72303064,1353.4,1353.3,0.07137545]
[1673478663658,35.33933064,1353.4,1353.3,0.07137545]
[1673478663973,34.78503064,1353.4,1353.3,0.07137545]
[1673478664984,29.25954064,1353.4,1353.3,0.07137545]
[1673478665151,8.0663,1353.4,1353.3,0.07137545]
[1673478665310,0.062,1353.4,1353.3,1.45937545]
[1673478665520,0.002,1353.4,1353.3,1.45937545]
[1673478665783,4.524,1353.5,1353.3,1.45937545]
[1673478666359,4.524,1353.5,1353.3,0.07137545]
[1673478667865,4.524,1353.5,1353.3,1.42748329]
[1673478668409,4.524,1353.5,1353.3,8.81678329]
[1673478668597,4.524,1353.5,1353.3,8.88278329]
[1673478669522,4.524,1353.5,1353.3,1.49348329]
[1673478669762,4.524,1353.5,1353.3,1.42748329]
[1673478670168,4.524,1353.5,1353.3,0.07137545]
[1673478670931,23.09821064,1353.5,1353.3,0.07137545]
[1673478671100,21.45,1353.4,1353.3,0.07137545]
[1673478671449,28.90079,1353.4,1353.3,0.07137545]
[1673478672038,43.67837,1353.4,1353.3,0.07137545]
[1673478675540,28.90079,1353.4,1353.3,0.07137545]
[1673478676913,36.28958,1353.4,1353.3,0.07137545]
[1673478677121,17.062,1353.4,1353.3,1.45937545]
[1673478677296,3.062,1353.4,1353.3,8.84871545]
[1673478677507,4.528,1353.5,1353.4,1.95609858]
[1673478677508,4.59,1353.5,1353.4,1.95609858]
[1673478677753,7.524,1353.5,1353.4,1.95609858]
[1673478678067,7.586,1353.5,1353.4,1.95609858]
[1673478678240,7.586,1353.5,1353.4,9.34488858]
[1673478678455,7.586,1353.5,1353.4,9.41088858]
[1673478679700,7.586,1353.5,1353.4,32.56282552]
[1673478679701,0.136,1353.5,1353.4,32.56282552]
[1673478679936,0.074,1353.5,1353.4,33.86582552]
[1673478680418,47.766,1353.9,1353.5,3.5]
[1673478680419,0.066,1353.9,1353.5,3.5]
[1673478680644,23.512,1354.0,1353.6,16.08418]
[1673478680831,23.512,1354.0,1353.6,16.15018]
[1673478681040,14.062,1354.0,1353.8,7.38661]
[1673478681292,14.062,1354.0,1353.8,7.45261]
[1673478681816,14.062,1354.0,1353.8,0.066]
[1673478682020,14.062,1354.0,1353.7,10.376928]
[1673478682548,3.0,1353.9,1353.7,2.990018]
[1673478682728,3.0,1353.9,1353.7,10.311148]
[1673478682937,3.0,1353.9,1353.7,10.377148]
[1673478683180,3.0,1353.9,1353.7,17.764308]
[1673478684728,3.0,1353.9,1353.7,16.455308]
[1673478685172,3.0,1353.9,1353.7,23.842468]
[1673478686611,3.0,1353.9,1353.7,22.22745]
[1673478688281,3.0,1353.9,1353.7,24.72745]
[1673478693222,3.0,1353.9,1353.7,22.22745]
[1673478695160,3.0,1353.9,1353.7,28.17512284]
[1673478695689,14.066,1354.0,1353.9,4.98589484]
[1673478695690,0.064,1354.0,1353.9,4.98589484]
[1673478695859,4.512,1354.2,1353.9,34.31520446]
[1673478696054,4.45,1354.2,1353.9,34.38120446]
[1673478698160,4.45,1354.2,1353.9,28.43353161]
[1673478698797,4.45,1354.2,1353.9,34.38179415]
[1673478699888,4.45,1354.2,1353.9,12.22361415]
[1673478700114,4.45,1354.2,1353.9,34.38179415]
[1673478700794,17.066,1354.3,1354.0,3.43817941]
[1673478701002,3.0,1354.2,1354.1,7.38497]
[1673478701212,3.0,1354.2,1354.1,7.45097]
[1673478702377,0.066,1354.3,1354.1,7.45097]
[1673478702637,3.0,1354.3,1354.1,7.45097]
[1673478703683,3.0,1354.3,1354.1,0.066]
[1673478703836,10.38394,1354.3,1354.0,25.66014941]
[1673478704050,10.44594,1354.3,1354.0,31.60841195]
[1673478704673,3.062,1354.3,1354.1,9.11111416]
[1673478704883,4.454,1354.4,1354.2,28.10155254]
[1673478704884,0.066,1354.4,1354.2,28.10155254]
[1673478705184,14.20013978,1354.5,1354.2,28.16755254]
[1673478705353,14.20213978,1354.5,1354.2,32.03706996]
[1673478705660,14.20013978,1354.5,1354.2,32.03906996]
[1673478706074,14.20013978,1354.5,1354.2,26.09080742]
[1673478707193,14.20013978,1354.5,1354.2,32.03906996]
[1673478707412,14.20013978,1354.5,1354.2,26.09080742]
[1673478707823,14.20013978,1354.5,1354.2,32.03906996]
[1673478708289,21.58317978,1354.5,1354.2,11.32194742]
[1673478708451,28.96621978,1354.5,1354.2,0.066]
[1673478708667,4.45,1354.3,1354.0,0.066]
[1673478708869,18.45,1354.1,1353.9,1.16389484]
[1673478709083,11.80176064,1354.0,1353.9,1.09789484]
[1673478709294,26.63480064,1354.0,1353.9,1.09789484]
[1673478709989,53.98132064,1354.0,1353.4,2.08209858]
[1673478710132,19.754,1353.5,1353.4,1.95609858]
[1673478710342,34.55621064,1353.5,1353.4,1.95609858]
[1673478710596,41.94446064,1353.5,1353.4,1.95609858]
[1673478710766,41.39016064,1353.5,1353.4,1.95609858]
[1673478711772,48.77841064,1353.5,1353.4,1.95609858]
[1673478713397,26.61366064,1353.5,1353.4,1.95609858]
[1673478713845,34.00191064,1353.5,1353.4,1.95609858]
[1673478714439,41.39016064,1353.5,1353.4,1.95609858]
[1673478714769,34.00191064,1353.5,1353.4,1.95609858]
[1673478715365,41.39016064,1353.5,1353.4,1.95609858]
[1673478715513,48.77841064,1353.5,1353.4,1.95609858]
[1673478716293,56.16666064,1353.5,1353.3,0.07137545]
[1673478716459,29.61637,1353.4,1353.3,0.07137545]
[1673478716664,29.67837,1353.4,1353.3,0.07137545]
[1673478716913,34.77903064,1353.4,1353.3,0.07137545]
[1673478718362,27.39024064,1353.4,1353.3,0.07137545]
[1673478718592,20.00145064,1353.4,1353.3,0.07137545]
[1673478718804,20.00145064,1353.4,1353.3,8.84871545]
[1673478718805,3.062,1353.4,1353.3,8.84871545]
[1673478719021,0.066,1353.5,1353.3,31.20881005]
[1673478719232,14.062,1353.7,1353.4,22.61741406]
[1673478719460,0.062,1353.7,1353.4,22.68519325]
[1673478719604,30.762,1353.8,1353.5,9.68379193]
[1673478719818,0.064,1353.8,1353.7,3.5]
[1673478720023,28.516,1354.1,1353.7,25.46118918]
[1673478720236,28.512,1354.1,1353.7,29.33439003]
[1673478720497,28.512,1354.1,1353.8,7.38651]
[1673478720706,28.512,1354.1,1353.8,7.45251]
[1673478720868,18.512,1354.1,1353.8,7.45251]
[1673478721078,18.512,1354.1,1353.8,17.9223147]
[1673478721079,4.512,1354.1,1353.8,17.9223147]
[1673478721290,4.45,1354.1,1353.8,23.81183543]
[1673478721550,14.066,1354.2,1353.9,14.77178]
[1673478721765,0.062,1354.2,1353.9,20.72730059]
[1673478721920,4.45,1354.3,1353.9,20.72730059]
[1673478722129,4.45,1354.3,1353.9,24.03272112]
[1673478722866,4.45,1354.3,1353.9,16.64666112]
[1673478722867,3.0,1354.2,1353.9,16.64666112]
[1673478723081,3.0,1354.2,1353.9,16.64723085]
[1673478724037,3.0,1354.2,1353.9,24.03329085]
[1673478724266,3.0,1354.2,1353.9,31.41935085]
[1673478725069,3.0,1354.2,1354.0,3.14193509]
[1673478725487,3.0,1354.2,1354.0,17.91261509]
[1673478725752,3.0,1354.2,1354.0,10.59311509]
[1673478726070,3.0,1354.2,1354.0,17.97863509]
[1673478729316,3.0,1354.2,1354.0,0.066]
[1673478729317,29.49131064,1354.2,1354.0,0.066]
[1673478729529,31.70457064,1354.1,1353.7,0.066]
[1673478729707,14.0,1353.8,1353.5,38.59906]
[1673478729923,3.0,1353.7,1353.5,21.227]
[1673478730585,3.0,1353.7,1353.5,0.066]
[1673478730743,3.0,1353.7,1353.4,24.18753673]
[1673478730956,3.0,1353.7,1353.4,0.066]
[1673478731312,10.38738,1353.7,1353.3,6.57671896]
[1673478731529,17.83684,1353.7,1353.3,9.17976685]
[1673478731737,17.83676,1353.7,1353.3,9.17976685]
[1673478731899,25.22414,1353.7,1353.3,9.17976685]
[1673478732116,22.28676,1353.7,1353.3,0.69177545]
[1673478732371,21.38781,1353.6,1353.3,0.07137545]
[1673478732584,21.44981,1353.6,1353.3,0.07137545]
[1673478732836,3.0,1353.5,1353.3,0.07137545]
[1673478733473,3.0,1353.5,1353.3,7.46065545]
[1673478733689,3.0,1353.5,1353.3,7.52665545]
[1673478734535,3.0,1353.5,1353.3,14.91599545]
[1673478735636,3.0,1353.5,1353.3,22.30533545]
[1673478737574,3.0,1353.5,1353.3,14.91599545]
[1673478737829,3.0,1353.5,1353.3,22.30533545]
[1673478738052,14.0,1353.5,1353.3,0.13737545]
[1673478738219,14.062,1353.5,1353.3,22.23936545]
[1673478738422,14.062,1353.5,1353.3,22.30536545]
[1673478738627,0.062,1353.5,1353.3,22.30536545]
[1673478738852,3.0,1353.6,1353.3,22.30536545]
[1673478739891,14.0,1353.5,1353.3,22.30536545]
[1673478740102,20.0,1353.4,1353.3,22.30148084]
[1673478740418,18.96167202,1353.4,1353.3,22.30148084]
[1673478741679,18.96167202,1353.4,1353.3,7.52280084]
[1673478742363,18.96167202,1353.4,1353.3,14.91214084]
[1673478742730,18.96167202,1353.4,1353.3,7.52280084]
[1673478743401,18.96167202,1353.4,1353.3,22.30148084]
[1673478744032,18.96167202,1353.4,1353.3,14.91214084]
[1673478744261,18.96167202,1353.4,1353.3,22.30148084]
[1673478744692,18.96167202,1353.4,1353.3,14.91214084]
[1673478744995,18.96167202,1353.4,1353.3,22.30148084]
[1673478745206,18.96167202,1353.4,1353.3,14.91214084]
[1673478745522,18.96167202,1353.4,1353.3,22.30148084]
[1673478747474,18.96167202,1353.4,1353.3,0.13349084]
[1673478747686,18.96167202,1353.4,1353.3,0.06749084]
[1673478751150,26.35046202,1353.4,1353.3,0.06749084]
[1673478754329,26.35046202,1353.4,1353.3,16.23417084]
[1673478754330,18.96167202,1353.4,1353.3,16.23417084]
[1673478754556,18.96167202,1353.4,1353.3,32.7172711]
[1673478754772,17.00558818,1353.4,1353.3,38.58094407]
[1673478754937,17.00558818,1353.4,1353.3,38.57118426]
[1673478755457,17.00558818,1353.4,1353.3,32.7172711]
[1673478756204,17.00558818,1353.4,1353.3,31.4142711]
[1673478757572,17.00558818,1353.4,1353.3,41.06649194]
[1673478757774,17.00558818,1353.4,1353.3,42.36949194]
[1673478758038,17.00558818,1353.4,1353.3,44.23289194]
[1673478758198,0.062,1353.4,1353.3,46.06640771]
[1673478758561,20.0,1353.8,1353.4,0.05]
[1673478758726,20.0,1353.8,1353.5,23.47242]
[1673478758727,20.062,1353.8,1353.5,23.47242]
[1673478758930,20.062,1353.8,1353.5,29.39297844]
[1673478758931,16.94358818,1353.7,1353.5,29.39297844]
[1673478759210,17.00558818,1353.7,1353.5,32.89297844]
[1673478760031,17.00558818,1353.7,1353.6,23.5]
[1673478760227,17.00558818,1353.7,1353.6,45.7291]
[1673478760556,17.00558818,1353.7,1353.6,51.521624]
[1673478761293,17.00558818,1353.7,1353.6,57.37787132]
[1673478761510,17.00558818,1353.7,1353.6,51.521624]
[1673478761874,16.95558818,1353.7,1353.6,51.521624]
[1673478762084,16.95558818,1353.7,1353.6,63.78753195]
[1673478762729,0.062,1353.7,1353.6,63.78753195]
[1673478762937,3.67947858,1354.2,1353.6,84.37073195]
[1673478763136,20.0,1354.0,1353.8,22.15902]
[1673478763340,20.0,1354.0,1353.8,28.08579811]
[1673478763341,36.95558818,1354.0,1353.8,28.08579811]
[1673478763976,16.95558818,1354.0,1353.8,22.22502]
[1673478765488,16.95558818,1354.0,1353.8,28.08579748]
[1673478765700,16.95558818,1354.0,1353.8,22.22502]
[1673478765866,16.95558818,1354.0,1353.9,24.380682]
[1673478766080,16.95558818,1354.0,1353.9,24.446682]
[1673478766325,16.95558818,1354.0,1353.9,9.674562]
[1673478767573,16.95558818,1354.0,1353.9,2.288502]
[1673478767811,16.95558818,1354.0,1353.9,16.994622]
[1673478768048,16.95558818,1354.0,1353.9,17.060622]
[1673478768213,16.95558818,1354.0,1353.9,2.288502]
[1673478768386,16.95558818,1354.0,1353.9,9.608562]
[1673478768602,16.95558818,1354.0,1353.9,2.288502]
[1673478768812,16.95558818,1354.0,1353.9,9.608562]
[1673478769022,16.95558818,1354.0,1353.9,9.674562]
[1673478769357,16.95558818,1354.0,1353.9,17.060622]
[1673478769701,16.95558818,1354.0,1353.9,24.446682]
[1673478770240,16.95558818,1354.0,1353.9,35.40469049]
[1673478770591,16.90558818,1354.0,1353.9,44.65385049]
[1673478770705,16.90558818,1354.0,1353.9,64.65385049]
[1673478770912,0.012,1354.0,1353.9,64.09975049]
[1673478771127,0.12547858,1354.2,1353.9,64.09975049]
[1673478771382,0.12547858,1354.2,1354.1,36.23688]
[1673478771559,0.12547858,1354.2,1354.1,47.27032667]
[1673478771764,16.90558818,1354.3,1354.1,54.65529667]
[1673478771994,16.90558818,1354.3,1354.2,33.12830668]
[1673478772173,16.90558818,1354.3,1354.2,33.19430668]
[1673478772382,0.012,1354.3,1354.2,39.12922835]
[1673478772593,0.13813978,1354.5,1354.2,49.18012835]
[1673478772806,0.13813978,1354.5,1354.4,4.005]
[1673478773017,0.13813978,1354.5,1354.4,7.80266064]
[1673478773224,0.13813978,1354.5,1354.4,12.21878731]
[1673478773471,0.13813978,1354.5,1354.4,4.41612667]
[1673478773700,0.13813978,1354.5,1354.3,23.7562]
[1673478773851,0.13813978,1354.5,1354.3,27.55386064]
[1673478774065,0.13813978,1354.5,1354.3,23.7562]
[1673478774278,0.13813978,1354.5,1354.3,29.8369]
[1673478774504,0.13813978,1354.5,1354.3,37.22078]
[1673478774914,0.13813978,1354.5,1354.4,20.0]
[1673478775125,0.13813978,1354.5,1354.4,41.08072204]
[1673478775470,0.13813978,1354.5,1354.4,66.49206268]
[1673478776109,1e-08,1354.5,1354.4,66.49206268]
[1673478776321,1e-08,1354.5,1354.4,65.18306268]
[1673478776536,1e-08,1354.5,1354.4,65.50696268]
[1673478776712,1e-08,1354.5,1354.4,64.95306268]
[1673478777060,1e-08,1354.5,1354.4,20.066]
[1673478777436,7.38279001,1354.5,1354.4,20.066]
[1673478777642,10.39479001,1354.5,1354.4,20.066]
[1673478777850,10.39479001,1354.5,1354.4,0.066]
[1673478778205,10.39479001,1354.5,1354.2,20.066]
[1673478778411,3.01200001,1354.5,1354.2,23.86366064]
[1673478778622,3.00000001,1354.5,1354.2,3.86366064]
[1673478778957,19.89358819,1354.5,1354.2,31.18207064]
[1673478779265,19.90558819,1354.5,1354.2,31.24807064]
[1673478779480,19.90558819,1354.5,1354.2,23.86366064]
[1673478779644,19.90558819,1354.5,1354.2,20.066]
[1673478779854,34.67142819,1354.5,1354.2,20.066]
[1673478780480,42.05447819,1354.5,1354.2,20.066]
[1673478780694,28.59737819,1354.5,1354.2,20.066]
[1673478780916,35.98042819,1354.5,1354.2,20.066]
[1673478781567,33.04737819,1354.5,1354.2,27.45014]
[1673478781781,47.81347819,1354.5,1354.2,20.066]
[1673478782504,2.697,1354.3,1354.2,20.064]
[1673478782684,28.40264,1354.3,1354.2,20.066]
[1673478782894,32.86464,1354.3,1354.2,20.066]
[1673478783157,36.66230064,1354.3,1354.2,20.066]
[1673478783325,36.66230064,1354.3,1354.2,0.066]
[1673478783530,56.66230064,1354.3,1353.8,22.4652]
[1673478783768,14.0,1354.1,1353.8,22.4652]
[1673478783960,3.0,1354.0,1353.8,22.4652]
[1673478784180,3.0,1354.0,1353.8,42.4652]
[1673478784580,3.0,1354.0,1353.8,20.066]
[1673478784886,3.0,1354.0,1353.8,27.45258]
[1673478785149,16.89358818,1353.9,1353.8,27.45258]
[1673478785361,15.80564103,1353.9,1353.8,27.45258]
[1673478786410,15.80564103,1353.9,1353.8,20.066]
[1673478787885,15.80564103,1353.9,1353.8,34.83922]
[1673478788781,15.80564103,1353.9,1353.8,27.45261]
[1673478789463,15.80564103,1353.9,1353.8,34.83922]
[1673478789635,15.80564103,1353.9,1353.8,27.45261]
[1673478790059,15.80564103,1353.9,1353.8,34.83922]
[1673478790266,15.80564103,1353.9,1353.8,27.45261]
[1673478790459,15.80564103,1353.9,1353.8,34.83922]
[1673478791015,15.80564103,1353.9,1353.8,27.45261]
[1673478791238,15.80564103,1353.9,1353.8,20.066]
[1673478791453,30.57776103,1353.9,1353.8,20.066]
[1673478791617,65.07458167,1353.9,1353.8,20.066]
[1673478792139,65.07458167,1353.9,1353.8,0.066]
[1673478792349,65.07458167,1353.9,1353.5,0.07031753]
[1673478792599,7.3877,1353.6,1353.5,0.07031753]
[1673478792822,14.7874,1353.6,1353.5,0.07031753]
[1673478792986,17.7874,1353.6,1353.5,0.07031753]
[1673478793646,25.1751,1353.6,1353.5,0.07031753]
[1673478793988,10.3997,1353.6,1353.5,0.07031753]
[1673478794353,26.19334103,1353.6,1353.5,0.07031753]
[1673478795739,33.58104103,1353.6,1353.5,0.07031753]
[1673478796188,40.96874103,1353.6,1353.5,0.07031753]
[1673478796515,52.38660167,1353.6,1353.5,7.53e-06]
[1673478797864,52.61660167,1353.6,1353.5,7.53e-06]
[1673478800345,57.61660167,1353.6,1353.5,7.53e-06]
[1673478800882,65.00430167,1353.6,1353.5,7.53e-06]
[1673478801289,72.81730167,1353.6,1353.5,7.53e-06]
[1673478801548,82.12630167,1353.6,1353.3,8.37e-06]
[1673478801768,50.62316,1353.4,1353.3,8.37e-06]
[1673478801927,55.21712064,1353.4,1353.3,8.37e-06]
[1673478802144,58.21712064,1353.4,1353.3,8.37e-06]
[1673478802353,78.21712064,1353.4,1353.3,8.37e-06]
[1673478802983,83.21712064,1353.4,1353.3,8.37e-06]
[1673478804031,91.03012064,1353.4,1353.3,8.37e-06]
[1673478804240,92.33912064,1353.4,1353.3,8.37e-06]
[1673478805526,16.263,1353.3,1353.2,6.97e-06]
[1673478805706,44.63308064,1353.3,1353.2,6.97e-06]
[1673478805906,8.0164,1353.3,1353.2,6.97e-06]
[1673478806118,20.25564103,1353.3,1353.2,6.97e-06]
[1673478806369,15.80564103,1353.3,1353.2,16.91371638]
[1673478806590,13.84937999,1353.3,1353.2,9.58982638]
[1673478807168,13.84937999,1353.3,1353.2,15.42372676]
[1673478807846,0.066,1353.4,1353.2,15.42372676]
[1673478808008,3.0,1353.5,1353.2,36.72472676]
[1673478808219,3.0,1353.5,1353.3,4.86431129]
[1673478808749,16.84937999,1353.5,1353.3,4.86431129]
[1673478809695,16.84937999,1353.5,1353.3,12.25362129]
[1673478809947,16.84937999,1353.5,1353.3,32.93220167]
[1673478810161,16.84937999,1353.5,1353.3,34.23620167]
[1673478810317,13.84937999,1353.5,1353.4,31.42389055]
[1673478810530,13.84937999,1353.5,1353.4,31.48989055]
[1673478811008,0.066,1353.6,1353.4,31.48989055]
[1673478811177,20.0,1353.8,1353.5,7.14290038]
[1673478811525,20.0,1353.8,1353.6,30.01929042]
[1673478811689,20.0,1353.8,1353.6,24.25139004]
[1673478811690,13.84937999,1353.7,1353.6,24.25139004]
[1673478812107,13.84937999,1353.7,1353.6,30.08529042]
[1673478812375,13.84937999,1353.7,1353.6,24.25139004]
[1673478812569,13.84937999,1353.7,1353.6,29.47599004]
[1673478812740,0.066,1353.8,1353.6,29.47599004]
[1673478813101,3.0,1353.9,1353.6,29.47599004]
[1673478813269,3.0,1353.9,1353.6,35.30989042]
[1673478813468,3.0,1353.9,1353.6,36.86369004]
[1673478813469,13.84937999,1353.8,1353.6,36.86369004]
[1673478814778,21.23603999,1353.8,1353.6,20.78029004]
[1673478815002,44.25697063,1353.8,1353.6,20.066]
[1673478815156,11.24766064,1353.7,1353.6,20.066]
[1673478815366,33.40914064,1353.7,1353.6,20.066]
[1673478815801,33.40914064,1353.7,1353.6,0.066]